bitfinex-derivatives/quotes_SOLF0:USTF0_20250730
["timestamp","ask_amount","ask_price","bid_price","bid_amount"]
[1753910310979,8.777,176.18,176.17,3.09]
[1753910312284,4.73827075,176.24,176.14,3.09]
[1753910312476,3.1,176.22,176.12,3.09]
[1753910312680,5.6777,176.16,176.13,5.6785]
[1753910312879,3.1,176.15,176.14,3.09]
[1753910313487,5.6773,176.18,176.14,3.09]
[1753910313686,3.1,176.17,176.14,3.09]
[1753910313987,8.7777,176.16,176.14,3.09]
[1753910314182,3.1,176.15,176.13,5.6785]
[1753910314587,3.1,176.15,176.14,3.09]
[1753910315284,12.85,176.16,176.14,3.09]
[1753910315488,15.95,176.16,176.14,3.09]
[1753910315987,15.95,176.16,176.14,5.6782]
[1753910316188,15.95,176.16,176.15,3.09]
[1753910317686,12.85,176.16,176.15,8.768]
[1753910317886,12.85,176.16,176.15,3.09]
[1753910318087,15.95,176.16,176.15,3.09]
[1753910319087,15.95,176.16,176.15,8.768]
[1753910319288,12.85,176.16,176.15,8.768]
[1753910322994,4.73827075,176.29,176.21,3.09]
[1753910323187,3.1,176.23,176.21,3.09]
[1753910323686,3.1,176.23,176.22,3.09]
[1753910324289,3.1,176.23,176.2,3.09]
[1753910324585,3.1,176.23,176.21,3.09]
[1753910326994,3.1,176.24,176.16,3.09]
[1753910327194,3.1,176.18,176.16,3.09]
[1753910327396,3.1,176.18,176.15,107.07]
[1753910327599,3.1,176.18,176.16,3.09]
[1753910327895,3.1,176.18,176.16,8.7676]
[1753910328507,3.1,176.17,176.16,8.7676]
[1753910330098,5.41,176.19,176.18,3.09]
[1753910330295,2.31,176.19,176.18,3.09]
[1753910331302,2.31,176.19,176.18,8.767]
[1753910332993,2.31,176.19,176.15,103.98]
[1753910332994,5.6742,176.27,176.22,3.09]
[1753910333194,3.1,176.24,176.23,3.09]
[1753910333393,5.6742,176.27,176.22,5.6757]
[1753910333599,3.1,176.23,176.22,8.7657]
[1753910334700,3.1,176.25,176.23,5.6751]
[1753910334897,3.1,176.25,176.24,3.09]
[1753910335301,3.1,176.25,176.24,8.7651]
[1753910336198,3.1,176.3,176.26,3.09]
[1753910336398,7.54456068,176.29,176.26,3.09]
[1753910336693,3.1,176.28,176.27,3.09]
[1753910337701,3.1,176.28,176.27,8.7641]
[1753910338198,3.1,176.29,176.28,8.7637]
[1753910338903,2.99,176.31,176.3,5.673]
[1753910339106,2.99,176.31,176.3,3.22]
[1753910339405,4.75069579,176.39,176.3,3.22]
[1753910339703,2.99,176.32,176.31,3.22]
[1753910339901,2.99,176.32,176.31,8.8926]
[1753910340098,2.99,176.32,176.23,103.94]
[1753910340298,2.99,176.31,176.24,3.22]
[1753910340499,2.99,176.31,176.17,3.22]
[1753910340694,2.99,176.31,176.18,103.92]
[1753910340896,2.99,176.31,176.19,3.22]
[1753910341101,2.99,176.35,176.19,3.22]
[1753910341301,2.99,176.33,176.19,3.22]
[1753910341502,5.6735,176.29,176.23,5.6751]
[1753910341705,2.99,176.28,176.24,3.22]
[1753910342505,2.99,176.28,176.24,5.6751]
[1753910342708,2.99,176.27,176.19,3.22]
[1753910343309,8.6643,176.27,176.22,5.6757]
[1753910343609,2.99,176.26,176.22,8.8957]
[1753910343907,2.99,176.26,176.23,3.22]
[1753910346107,2.99,176.26,176.22,3.22]
[1753910346313,2.99,176.26,176.19,3.22]
[1753910347512,2.99,176.24,176.18,103.92]
[1753910347813,2.99,176.24,176.18,107.14]
[1753910348013,8.6653,176.24,176.19,5.6766]
[1753910348311,2.99,176.23,176.19,8.8966]
[1753910348504,2.99,176.23,176.2,8.8961]
[1753910349309,2.99,176.31,176.21,3.22]
[1753910349513,2.99,176.29,176.21,3.22]
[1753910349911,2.99,176.28,176.21,3.22]
[1753910351318,2.99,176.27,176.23,8.8952]
[1753910352416,2.99,176.27,176.24,5.675]
[1753910354014,8.6642,176.27,176.22,5.6754]
[1753910354216,2.99,176.27,176.19,3.22]
[1753910354614,5.6753,176.24,176.2,5.6762]
[1753910354814,2.99,176.23,176.2,5.6762]
[1753910355517,5.6753,176.24,176.19,3.22]
[1753910355518,7.74069579,176.3,176.19,3.22]
[1753910355710,2.99,176.28,176.19,3.22]
[1753910355915,2.99,176.22,176.19,3.22]
[1753910356117,2.99,176.22,176.19,8.8967]
[1753910356313,2.99,176.22,176.19,3.22]
[1753910357424,2.99,176.22,176.2,5.6763]
[1753910357621,5.6752,176.24,176.2,8.8963]
[1753910357822,2.99,176.23,176.2,3.22]
[1753910358520,2.99,176.23,176.22,5.6757]
[1753910358721,2.99,176.23,176.22,8.8957]
[1753910359225,2.99,176.23,176.22,3.22]
[1753910359926,2.99,176.25,176.22,3.22]
[1753910360224,2.99,176.24,176.23,3.22]
[1753910362827,2.99,176.26,176.23,3.22]
[1753910363024,2.99,176.25,176.18,103.92]
[1753910363224,2.99,176.25,176.19,3.22]
[1753910363529,2.99,176.24,176.19,3.22]
[1753910363926,5.675,176.25,176.19,3.22]
[1753910364229,2.99,176.23,176.21,5.6758]
[1753910364423,2.99,176.23,176.22,3.22]
[1753910364623,2.99,176.23,176.21,3.22]
[1753910364829,2.99,176.23,176.19,3.22]
[1753910365225,2.99,176.22,176.19,3.22]
[1753910365428,2.99,176.24,176.19,3.22]
[1753910365831,2.99,176.24,176.23,3.22]
[1753910366925,20.78443349,176.35,176.24,3.22]
[1753910366926,2.99,176.25,176.24,3.22]
[1753910367423,2.99,176.25,176.24,8.8951]
[1753910367620,2.99,176.25,176.24,3.22]
[1753910371431,3.1,176.27,176.25,3.19]
[1753910372232,3.1,176.26,176.25,5.6747]
[1753910372627,3.1,176.26,176.25,8.8647]
[1753910373732,3.1,176.26,176.19,3.19]
[1753910373935,3.1,176.25,176.19,3.19]
[1753910374134,3.1,176.25,176.21,5.6758]
[1753910374426,3.1,176.25,176.21,8.8658]
[1753910374733,3.1,176.25,176.22,8.8655]
[1753910375828,3.1,176.24,176.19,3.19]
[1753910376435,3.1,176.23,176.2,8.8662]
[1753910377933,3.1,176.22,176.18,103.92]
[1753910378124,3.1,176.22,176.19,3.19]
[1753910378631,3.1,176.22,176.2,3.19]
[1753910380434,3.1,176.28,176.19,3.19]
[1753910380629,7.57360409,176.27,176.19,3.19]
[1753910380830,3.1,176.27,176.19,3.19]
[1753910382230,5.6732,176.3,176.25,3.19]
[1753910382527,3.1,176.27,176.25,3.19]
[1753910383327,3.1,176.27,176.26,5.6742]
[1753910383531,3.1,176.32,176.26,3.19]
[1753910383734,3.1,176.3,176.26,3.19]
[1753910384139,3.1,176.3,176.29,5.6733]
[1753910384335,3.1,176.3,176.29,8.8633]
[1753910384736,3.1,176.34,176.31,5.6728]
[1753910385038,3.1,176.32,176.29,3.19]
[1753910385234,3.1,176.32,176.3,5.6731]
[1753910385544,3.1,176.31,176.3,5.6731]
[1753910386044,3.1,176.31,176.3,8.8631]
[1753910386247,3.1,176.31,176.28,3.19]
[1753910387040,3.1,176.31,176.19,3.19]
[1753910388042,3.1,176.31,176.28,5.6737]
[1753910388237,3.1,176.31,176.26,3.19]
[1753910388438,3.1,176.3,176.27,3.19]
[1753910389339,386.13069579,176.39,176.29,3.19]
[1753910389638,3.1,176.32,176.29,3.19]
[1753910390140,3.1,176.31,176.3,8.8628]
[1753910390634,3.1,176.38,176.31,5.6728]
[1753910390839,4.46676902,176.37,176.31,5.6728]
[1753910391041,3.1,176.35,176.31,8.8628]
[1753910391341,3.1,176.33,176.31,8.8628]
[1753910391639,5.6715,176.36,176.31,8.8628]
[1753910391640,3.1,176.32,176.31,8.8628]
[1753910393546,3.1,176.32,176.18,120.96]
[1753910393547,3.1,176.32,176.3,5.673]
[1753910393746,3.1,176.32,176.18,120.96]
[1753910394244,3.1,176.32,176.29,5.6733]
[1753910395242,386.13069579,176.39,176.29,5.6733]
[1753910395439,3.1,176.37,176.3,3.19]
[1753910395640,3.1,176.35,176.19,17.04]
[1753910395945,3.1,176.35,176.32,5.6723]
[1753910398345,3.1,176.35,176.33,5.6722]
[1753910398545,4.75069579,176.4,176.2,17.04]
[1753910398852,3.09,176.38,176.23,3.3]
[1753910399146,8.7606,176.38,176.23,3.3]
[1753910399339,3.09,176.41,176.25,3.3]
[1753910399540,4.75069579,176.42,176.25,3.3]
[1753910399541,3.09,176.39,176.25,3.3]
[1753910399743,3.09,176.37,176.25,3.3]
[1753910400152,3.09,176.42,176.25,3.3]
[1753910400447,3.09,176.4,176.25,3.3]
[1753910400648,4.45778815,176.39,176.25,3.3]
[1753910400949,3.09,176.38,176.25,3.3]
[1753910401350,3.09,176.37,176.31,3.3]
[1753910401555,3.09,176.37,176.25,3.3]
[1753910401747,4.4592218,176.36,176.25,3.3]
[1753910401941,4.75461057,176.4,176.19,11.3533]
[1753910401942,3.09,176.33,176.19,11.3533]
[1753910402248,3.09,176.33,176.27,3.3]
[1753910402451,4.75461057,176.38,176.25,3.3]
[1753910402452,3.09,176.37,176.25,3.3]
[1753910402651,3.09,176.35,176.25,3.3]
[1753910402950,3.09,176.33,176.25,3.3]
[1753910403154,3.09,176.31,176.25,3.3]
[1753910403857,8.763,176.31,176.26,5.6741]
[1753910404053,3.09,176.3,176.26,3.3]
[1753910404552,3.09,176.3,176.26,8.9744]
[1753910404749,5.6732,176.3,176.26,8.9744]
[1753910404944,3.09,176.29,176.26,8.9744]
[1753910405144,3.09,176.29,176.26,5.6744]
[1753910405343,3.09,176.28,176.27,3.3]
[1753910408255,3.09,176.28,176.27,8.9741]
[1753910410150,3.09,176.28,176.24,3.3]
[1753910410351,3.09,176.28,176.22,3.3]
[1753910410751,3.09,176.28,176.2,3.3]
[1753910410752,5.6745,176.26,176.2,3.3]
[1753910410950,3.09,176.25,176.21,3.3]
[1753910411654,3.09,176.25,176.19,3.3]
[1753910412058,5.6761,176.21,176.17,5.6771]
[1753910412252,3.09,176.2,176.16,3.3]
[1753910412454,3.09,176.2,176.14,3.3]
[1753910412656,8.7666,176.2,176.15,5.6777]
[1753910412857,3.09,176.19,176.15,5.6777]
[1753910413159,3.09,176.19,176.15,8.9777]
[1753910413859,3.09,176.19,176.16,5.6776]
[1753910418359,3.09,176.18,176.13,3.3]
[1753910418559,3.09,176.18,176.12,381.36]
[1753910418763,3.09,176.18,176.14,3.3]
[1753910419366,3.09,176.18,176.14,5.6783]
[1753910419563,3.09,176.18,176.14,8.9783]
[1753910420160,3.09,176.18,176.15,3.3]
[1753910422771,3.09,176.18,176.15,8.978]
[1753910423460,3.09,176.18,176.13,3.3]
[1753910423861,3.09,176.2,176.13,3.3]
[1753910424065,4.75461057,176.29,176.13,3.3]
[1753910424375,3.09,176.23,176.13,3.3]
[1753910424572,3.09,176.31,176.13,3.3]
[1753910424871,3.09,176.23,176.13,3.3]
[1753910425473,3.09,176.22,176.14,103.9]
[1753910425666,3.09,176.22,176.15,3.3]
[1753910426068,5.6763,176.21,176.16,5.6774]
[1753910426269,3.09,176.2,176.17,3.3]
[1753910426669,3.09,176.3,176.15,3.3]
[1753910426868,3.09,176.28,176.15,3.3]
[1753910427072,3.09,176.26,176.15,3.3]
[1753910427776,3.09,176.26,176.24,5.675]
[1753910427974,3.09,176.25,176.24,8.975]
[1753910428169,3.09,176.25,176.24,3.3]
[1753910428374,3.09,176.25,176.24,8.9751]
[1753910432475,3.09,176.25,176.21,3.04]
[1753910432679,3.09,176.25,176.2,103.9]
[1753910433075,5.6753,176.24,176.2,103.9]
[1753910433378,3.1,176.23,176.2,103.9]
[1753910436278,3.1,176.23,176.2,106.94]
[1753910437083,3.1,176.23,176.2,112.6163]
[1753910438685,3.1,176.23,176.21,5.6759]
[1753910438985,3.1,176.22,176.21,3.04]
[1753910440081,3.1,176.22,176.2,109.5762]
[1753910440383,3.1,176.22,176.2,112.6162]
[1753910441084,3.1,176.21,176.2,112.6162]
[1753910441486,3.1,176.21,176.2,106.94]
[1753910445385,3.1,176.21,176.2,112.6164]
[1753910446588,3.1,176.21,176.2,103.9]
[1753910448190,3.1,176.21,176.2,106.94]
[1753910448387,3.1,176.23,176.2,106.94]
[1753910448586,3.1,176.24,176.21,8.7158]
[1753910450188,3.1,176.24,176.22,5.6757]
[1753910450388,3.1,176.24,176.21,3.04]
[1753910450585,5.6742,176.27,176.21,3.04]
[1753910450785,4.47656337,176.26,176.22,3.04]
[1753910450985,4.74541279,176.3,176.23,3.04]
[1753910450986,3.1,176.25,176.23,3.04]
[1753910451188,5.6738,176.28,176.24,5.6751]
[1753910451492,4.47761288,176.27,176.2,103.9]
[1753910451690,4.47761288,176.26,176.23,8.7153]
[1753910451890,3.1,176.25,176.23,8.7153]
[1753910452790,5.6744,176.27,176.24,5.6749]
[1753910453000,4.7643049,176.32,176.24,104.02]
[1753910453191,3.1,176.3,176.24,104.02]
[1753910453389,3.1,176.28,176.26,8.7143]
[1753910453892,8.7726,176.32,176.28,5.6735]
[1753910454085,3.1,176.3,176.28,5.6735]
[1753910454284,3.1,176.27,176.24,104.02]
[1753910454484,3.1,176.27,176.26,5.6743]
[1753910454696,3.1,176.27,176.26,8.7143]
[1753910454888,3.1,176.33,176.26,3.04]
[1753910455083,3.1,176.31,176.28,3.04]
[1753910455383,7.58048745,176.3,176.28,3.04]
[1753910455692,3.1,176.3,176.29,3.04]
[1753910456890,3.1,176.31,176.28,5.6736]
[1753910457091,3.1,176.3,176.25,3.04]
[1753910457296,3.1,176.29,176.28,3.04]
[1753910458096,3.1,176.36,176.29,3.04]
[1753910458395,5.6724,176.33,176.24,104.02]
[1753910458596,3.1,176.31,176.3,3.04]
[1753910459695,3.27,176.33,176.3,3.04]
[1753910459894,3.27,176.32,176.31,3.25]
[1753910460687,3.27,176.32,176.16,3.25]
[1753910460894,3.27,176.3,176.16,3.25]
[1753910461089,3.27,176.28,176.18,3.25]
[1753910461400,4.7643049,176.32,176.22,8.9256]
[1753910461401,3.27,176.25,176.22,8.9256]
[1753910461694,58.00741132,176.41,176.18,3.25]
[1753910461695,5.6741,176.27,176.18,3.25]
[1753910461898,3.27,176.26,176.18,3.25]
[1753910462496,3.27,176.26,176.17,104.14]
[1753910462497,5.6741,176.27,176.22,5.6755]
[1753910462691,4.7643049,176.33,176.23,3.25]
[1753910462897,3.27,176.31,176.23,3.25]
[1753910463097,3.27,176.31,176.17,104.14]
[1753910463098,3.27,176.29,176.26,5.6742]
[1753910463296,3.27,176.29,176.28,3.25]
[1753910463693,5.6725,176.32,176.17,104.14]
[1753910463902,4.43964697,176.31,176.18,3.25]
[1753910464098,3.27,176.3,176.27,5.6739]
[1753910464296,3.27,176.3,176.29,3.25]
[1753910464900,5.6726,176.32,176.28,3.25]
[1753910465101,3.27,176.29,176.28,3.25]
[1753910465401,3.27,176.31,176.29,3.25]
[1753910465597,5.6723,176.33,176.29,3.25]
[1753910465797,3.27,176.3,176.29,3.25]
[1753910467903,3.27,176.3,176.28,5.6738]
[1753910468102,3.27,176.29,176.28,8.9238]
[1753910468697,3.27,176.29,176.25,3.25]
[1753910468903,3.27,176.29,176.24,107.41]
[1753910469502,3.27,176.29,176.24,113.0848]
[1753910469903,5.6738,176.28,176.24,104.16]
[1753910470100,3.27,176.27,176.24,104.16]
[1753910470900,3.27,176.27,176.24,109.8351]
[1753910471096,3.27,176.27,176.24,113.0851]
[1753910471298,3.27,176.27,176.24,104.16]
[1753910471604,3.27,176.27,176.14,11.356]
[1753910471800,3.27,176.25,176.16,3.25]
[1753910472006,3.27,176.24,176.16,3.25]
[1753910472606,3.27,176.23,176.19,5.6765]
[1753910472906,5.6751,176.24,176.19,5.6765]
[1753910473105,3.27,176.22,176.19,8.9265]
[1753910475105,3.27,176.22,176.18,5.677]
[1753910475307,3.27,176.22,176.18,8.927]
[1753910476110,3.27,176.21,176.16,3.25]
[1753910476303,3.27,176.21,176.15,104.08]
[1753910476807,3.27,176.21,176.15,107.33]
[1753910477413,3.27,176.18,176.15,107.33]
[1753910478404,4.7669157,176.26,176.15,104.08]
[1753910478606,3.27,176.17,176.16,8.9274]
[1753910480812,3.27,176.17,176.16,3.25]
[1753910482115,3.27,176.21,176.08,0.98801885]
[1753910482318,3.27,176.19,176.09,3.25]
[1753910483222,5.6775,176.17,176.12,5.6787]
[1753910483422,3.27,176.16,176.13,3.25]
[1753910483615,3.27,176.15,176.14,3.25]
[1753910484214,5.6763,176.21,176.16,5.6774]
[1753910484619,3.27,176.2,176.17,3.25]
[1753910485317,3.27,176.2,176.17,8.9273]
[1753910485516,3.27,176.2,176.17,3.25]
[1753910486820,3.27,176.2,176.17,8.9272]
[1753910487028,3.27,176.2,176.17,3.25]
[1753910487724,3.27,176.19,176.18,3.25]
[1753910488524,3.27,176.19,176.16,8.9273]
[1753910489627,3.25,176.18,176.17,3.31]
[1753910492521,3.25,176.18,176.17,8.9873]
[1753910492826,3.25,176.21,176.19,3.31]
[1753910493032,4.75563062,176.28,176.19,3.31]
[1753910493232,3.25,176.26,176.19,3.31]
[1753910493428,3.25,176.24,176.19,3.31]
[1753910493630,3.25,176.24,176.13,104.2]
[1753910493828,3.25,176.23,176.22,3.31]
[1753910494333,3.25,176.23,176.2,3.31]
[1753910494932,3.25,176.23,176.14,3.31]
[1753910496030,5.676,176.21,176.16,5.6775]
[1753910496230,3.25,176.2,176.13,104.2]
[1753910496436,3.25,176.2,176.14,3.31]
[1753910496637,3.25,176.18,176.13,104.2]
[1753910496838,3.25,176.18,176.14,3.31]
[1753910497045,5.6771,176.18,176.14,3.31]
[1753910497342,3.25,176.17,176.15,3.31]
[1753910497835,5.6774,176.17,176.15,3.31]
[1753910498139,3.25,176.16,176.15,3.31]
[1753910499536,3.25,176.15,176.13,107.51]
[1753910499734,3.25,176.14,176.13,107.51]
[1753910500639,3.25,176.14,176.13,104.2]
[1753910500941,3.25,176.13,176.12,3.31]
[1753910503040,3.25,176.13,176.12,8.9889]
[1753910503740,3.25,176.23,176.12,3.31]
[1753910504038,3.25,176.21,176.12,3.31]
[1753910504239,4.753221,176.25,176.1,381.5]
[1753910504439,3.25,176.24,176.14,3.31]
[1753910504641,3.25,176.22,176.14,107.61]
[1753910504943,3.25,176.22,176.18,3.31]
[1753910505138,3.25,176.22,176.19,3.31]
[1753910505543,3.25,176.21,176.2,3.31]
[1753910505836,3.25,176.22,176.21,3.31]
[1753910509142,3.25,176.22,176.21,8.986]
[1753910509349,4.75672235,176.3,176.14,104.3]
[1753910509537,3.25,176.23,176.22,3.31]
[1753910510741,3.25,176.25,176.22,3.31]
[1753910510946,3.25,176.24,176.23,3.31]
[1753910511537,3.25,176.24,176.21,3.31]
[1753910511738,3.25,176.26,176.15,3.31]
[1753910512239,4.75672235,176.3,176.15,3.31]
[1753910512448,3.25,176.28,176.15,3.31]
[1753910512749,3.25,176.26,176.15,3.31]
[1753910512944,4.75672235,176.32,176.16,17.04]
[1753910513248,4.75672235,176.32,176.14,104.3]
[1753910513249,3.25,176.3,176.18,3.31]
[1753910513550,5.6729,176.31,176.25,5.6747]
[1753910513749,3.25,176.28,176.25,5.6747]
[1753910514549,3.25,176.28,176.26,5.6744]
[1753910516251,3.25,176.28,176.21,104.6]
[1753910516452,3.25,176.28,176.23,3.31]
[1753910516650,3.25,176.28,176.24,3.31]
[1753910518352,3.25,176.28,176.24,8.985]
[1753910518655,3.04,176.27,176.21,107.89]
[1753910519350,8.7141,176.27,176.22,5.6755]
[1753910519553,3.04,176.26,176.22,8.9655]
[1753910520248,3.04,176.26,176.2,3.29]
[1753910520450,3.04,176.26,176.18,3.29]
[1753910520850,3.04,176.23,176.19,5.6765]
[1753910521049,3.04,176.23,176.16,104.52]
[1753910521249,8.7156,176.23,176.18,5.6767]
[1753910521555,3.04,176.22,176.18,8.9667]
[1753910521952,8.7158,176.22,176.18,8.9667]
[1753910522150,3.04,176.21,176.17,5.6772]
[1753910522852,5.6761,176.21,176.17,5.6772]
[1753910523053,3.04,176.2,176.17,5.6772]
[1753910523555,8.7164,176.2,176.16,110.1975]
[1753910523753,3.04,176.19,176.16,110.1975]
[1753910523946,3.04,176.19,176.16,5.6775]
[1753910524152,4.75672235,176.26,176.1,381.5]
[1753910524153,3.04,176.18,176.13,3.29]
[1753910524351,4.44052614,176.17,176.08,3.29]
[1753910524551,3.04,176.2,176.08,3.29]
[1753910524756,3.04,176.15,176.12,5.6788]
[1753910524959,3.04,176.15,176.09,3.29]
[1753910525258,3.04,176.15,176.11,5.679]
[1753910525556,3.04,176.15,176.11,8.969]
[1753910526860,4.75672235,176.21,176.11,3.29]
[1753910527059,3.04,176.14,176.07,206.51090395]
[1753910527558,3.04,176.19,176.07,206.51090395]
[1753910527759,3.04,176.17,176.07,206.51090395]
[1753910528065,3.04,176.15,176.07,206.51090395]
[1753910528257,3.04,176.12,176.07,206.51090395]
[1753910528557,3.04,176.12,176.08,3.29]
[1753910528960,3.04,176.11,176.08,8.97]
[1753910529662,3.04,176.1,176.08,3.29]
[1753910529864,3.04,176.1,176.07,203.22090395]
[1753910530058,3.04,176.1,176.07,206.51090395]
[1753910530359,3.04,176.18,176.07,107.81]
[1753910530559,3.04,176.16,176.08,3.29]
[1753910531561,3.04,176.11,176.09,3.29]
[1753910531861,3.04,176.1,176.09,3.29]
[1753910532357,3.04,176.12,176.11,3.29]
[1753910532659,3.04,176.12,176.07,104.52]
[1753910532858,5.6789,176.12,176.09,3.29]
[1753910533164,3.04,176.1,176.09,3.29]
[1753910533363,5.6785,176.14,176.09,5.6798]
[1753910533563,5.6785,176.14,176.11,3.29]
[1753910533765,3.04,176.13,176.08,3.29]
[1753910534463,8.718,176.15,176.09,5.6798]
[1753910534665,8.718,176.15,176.1,3.29]
[1753910534858,3.04,176.14,176.1,3.29]
[1753910535365,3.04,176.13,176.11,3.29]
[1753910535559,3.04,176.13,176.12,3.29]
[1753910536761,3.04,176.13,176.1,3.29]
[1753910537467,3.04,176.21,176.08,3.29]
[1753910537664,3.04,176.19,176.08,3.29]
[1753910537859,3.04,176.14,176.1,5.6794]
[1753910538067,3.04,176.14,176.12,3.29]
[1753910539069,8.7183,176.14,176.11,3.29]
[1753910539369,3.04,176.13,176.11,3.29]
[1753910541070,3.04,176.12,176.1,3.29]
[1753910541571,3.04,176.12,176.09,5.6798]
[1753910541870,3.04,176.11,176.09,5.6798]
[1753910542266,3.04,176.11,176.09,8.9698]
[1753910542463,5.6789,176.12,176.09,8.9698]
[1753910542778,3.04,176.2,176.1,8.9694]
[1753910542967,3.04,176.18,176.1,8.9694]
[1753910543167,4.42215702,176.17,176.08,3.29]
[1753910543471,3.04,176.2,176.09,8.9696]
[1753910543769,3.04,176.15,176.09,3.29]
[1753910544161,3.04,176.12,176.07,4.0640466]
[1753910544362,3.04,176.12,176.07,3.29]
[1753910545274,5.68,176.09,176.07,3.29]
[1753910545467,3.04,176.08,176.07,3.29]
[1753910545667,3.04,176.08,176.05,3.29]
[1753910545870,5.68,176.09,176.06,3.29]
[1753910546264,3.04,176.07,176.06,3.29]
[1753910546573,3.04,176.09,176.03,3.29]
[1753910547073,3.04,176.06,176.03,3.29]
[1753910547775,5.6809,176.06,176.03,3.29]
[1753910547978,3.04,176.05,176.04,3.29]
[1753910549769,3.04,176.05,176.02,7.1340466]
[1753910550074,3.04,176.05,176.04,3.07]
[1753910550776,5.6809,176.06,176.03,3.07]
[1753910550976,3.24,176.05,176.04,3.07]
[1753910553772,5.68,176.09,176.04,8.7515]
[1753910553976,3.24,176.08,176.05,3.07]
[1753910554976,3.24,176.07,176.05,3.07]
[1753910555574,3.24,176.06,176.03,5.6817]
[1753910555782,3.24,176.06,176.03,3.07]
[1753910557080,3.24,176.06,176.02,9.7460466]
[1753910557277,3.24,176.06,176.02,12.8160466]
[1753910557478,3.24,176.05,176.02,5.682]
[1753910557677,3.24,176.05,176.02,3.07]
[1753910559183,5.6811,176.06,176.0,3.07]
[1753910559380,3.24,176.04,176.0,8.7527]
[1753910559577,3.24,176.04,176.01,3.07]
[1753910559783,3.24,176.04,176.01,4.0640466]
[1753910560087,3.24,176.04,176.03,3.07]
[1753910560479,3.24,176.04,176.02,3.07]
[1753910560686,3.24,176.03,176.02,3.07]
[1753910561589,8.9218,176.03,176.02,3.07]
[1753910563288,3.24,176.03,176.02,3.07]
[1753910564287,3.24,176.03,176.0,5.6827]
[1753910564288,4.0640466,176.06,176.0,3.07]
[1753910564493,3.24,176.04,176.0,3.07]
[1753910564992,3.24,176.01,176.0,3.07]
[1753910565290,3.24,176.01,175.98,107.49]
[1753910565492,3.24,176.01,175.99,3.07]
[1753910566285,3.24,176.0,175.99,3.07]